bitfinex/quotes_BTCUSD_20210101
["timestamp","ask_amount","ask_price","bid_price","bid_amount"]
[1609514487842,6.44168982,29343.0,29342.0,0.0006]
[1609514488042,5.79168982,29343.0,29342.0,0.0006]
[1609514488643,4.79623982,29343.0,29342.0,0.0006]
[1609514488843,5.79168982,29343.0,29342.0,0.0006]
[1609514489143,4.79623982,29343.0,29342.0,0.0006]
[1609514489986,5.79168982,29343.0,29342.0,0.0006]
[1609514490285,4.82680357,29343.0,29342.0,0.0006]
[1609514490489,5.03180357,29343.0,29342.0,0.0006]
[1609514491219,4.87280982,29343.0,29342.0,0.0006]
[1609514491418,3.73508836,29343.0,29342.0,0.0006]
[1609514491623,3.02040936,29343.0,29342.0,0.365221]
[1609514491824,2.02040936,29343.0,29342.0,1.265221]
[1609514492019,0.69480112,29343.0,29342.0,0.365221]
[1609514492224,0.64480112,29343.0,29342.0,2.965221]
[1609514492418,0.64480112,29343.0,29342.0,0.365221]
[1609514492918,0.64480112,29343.0,29342.0,1.266031]
[1609514493418,0.64480112,29343.0,29342.0,0.516031]
[1609514494164,0.64480112,29343.0,29342.0,0.360221]
[1609514494360,0.91480112,29343.0,29342.0,0.360221]
[1609514494762,0.91480112,29343.0,29342.0,2.460221]
[1609514495261,0.91480112,29343.0,29342.0,0.360221]
[1609514495868,0.91480112,29343.0,29342.0,1.060221]
[1609514497565,0.91480112,29343.0,29342.0,0.360221]
[1609514497968,0.91480112,29343.0,29342.0,0.360421]
[1609514498767,0.91480112,29343.0,29342.0,1.810421]
[1609514500892,0.91480112,29343.0,29342.0,0.360421]
[1609514501095,0.64480112,29343.0,29342.0,0.360421]
[1609514501689,0.64480112,29343.0,29342.0,2.410421]
[1609514501889,0.64480112,29343.0,29342.0,0.360421]
[1609514503696,0.64480112,29343.0,29342.0,2.097121]
[1609514503895,0.64480112,29343.0,29342.0,2.296131]
[1609514504492,0.64480112,29343.0,29342.0,0.296131]
[1609514505211,0.64480112,29343.0,29342.0,0.097121]
[1609514505611,0.64480112,29343.0,29342.0,1.097121]
[1609514505810,0.88980112,29343.0,29342.0,1.097121]
[1609514506479,0.64480112,29343.0,29342.0,1.097121]
[1609514506681,0.64480112,29343.0,29342.0,4.197121]
[1609514506888,0.64480112,29343.0,29342.0,4.27710729]
[1609514507280,0.64480112,29343.0,29342.0,1.17710729]
[1609514507682,0.88980112,29343.0,29342.0,3.27710729]
[1609514507877,0.88980112,29343.0,29342.0,1.14570729]
[1609514508579,0.88980112,29343.0,29342.0,3.19570729]
[1609514509228,1.12e-06,29343.0,29342.0,3.19570729]
[1609514509437,0.05332146,29352.0,29343.0,0.0002]
[1609514509628,0.05332146,29352.0,29347.0,0.289221]
[1609514509837,0.50766265,29358.0,29351.0,0.065461]
[1609514510027,0.50766265,29358.0,29355.0,0.289132]
[1609514510224,0.50766265,29358.0,29357.0,4.415443]
[1609514510422,0.50766265,29358.0,29357.0,4.665443]
[1609514510621,0.49766265,29358.0,29357.0,4.665643]
[1609514511133,0.49766265,29358.0,29357.0,0.315643]
[1609514511325,0.49766265,29358.0,29357.0,0.14562929]
[1609514511526,0.49766265,29358.0,29357.0,1.09562929]
[1609514511726,0.49766265,29358.0,29357.0,0.14562929]
[1609514511921,0.49766265,29358.0,29357.0,0.13562929]
[1609514512528,0.49766265,29358.0,29357.0,1.23562929]
[1609514512726,0.49766265,29358.0,29357.0,0.13562929]
[1609514513129,0.49766265,29358.0,29357.0,0.13542929]
[1609514513629,0.49766265,29358.0,29357.0,1.23542929]
[1609514514541,0.49766265,29358.0,29357.0,0.13542929]
[1609514514744,0.49766265,29358.0,29357.0,0.055443]
[1609514515149,0.49766265,29358.0,29357.0,0.1034673]
[1609514515150,1.88433765,29358.0,29357.0,0.1034673]
[1609514515345,2.32155965,29358.0,29357.0,0.1034673]
[1609514515549,3.31700965,29358.0,29357.0,0.1034673]
[1609514515744,2.84155965,29358.0,29357.0,0.1034673]
[1609514516150,2.93182153,29358.0,29357.0,0.0884673]
[1609514516346,2.84155965,29358.0,29357.0,0.0884673]
[1609514516554,2.32155965,29358.0,29354.0,0.0002]
[1609514516754,0.95,29357.0,29354.0,0.34459]
[1609514516953,0.52,29355.0,29354.0,0.34459]
[1609514517346,1.5419,29355.0,29354.0,0.34479]
[1609514517650,1.8369,29355.0,29354.0,0.44613188]
[1609514517851,1.3169,29355.0,29354.0,0.34479]
[1609514518150,1.3169,29355.0,29354.0,0.3444906]
[1609514518848,1.3169,29355.0,29354.0,0.4453317]
[1609514520168,1.3169,29355.0,29354.0,0.4447127]
[1609514520472,1.3169,29355.0,29354.0,0.3438716]
[1609514521513,1.8369,29355.0,29354.0,0.44590844]
[1609514521910,1.83458548,29355.0,29354.0,0.44590844]
[1609514522111,1.31458548,29355.0,29354.0,0.44590844]
[1609514522309,1.31458548,29355.0,29354.0,0.3438716]
[1609514522508,1.31458548,29355.0,29354.0,0.3388716]
[1609514522710,1.80703681,29355.0,29354.0,0.3388716]
[1609514523111,1.28703681,29355.0,29354.0,0.3388716]
[1609514523314,1.28703681,29355.0,29354.0,0.43970248]
[1609514523315,1.80703681,29355.0,29354.0,0.43970248]
[1609514523623,1.28703681,29355.0,29354.0,0.43970248]
[1609514523849,1.28703681,29355.0,29354.0,0.3388716]
[1609514525049,1.28703681,29355.0,29354.0,0.4404281]
[1609514525453,1.80703681,29355.0,29354.0,0.3388716]
[1609514525759,1.28703681,29355.0,29354.0,0.0002]
[1609514525951,1.28703681,29355.0,29354.0,0.338676]
[1609514526552,1.28703681,29355.0,29354.0,0.338876]
[1609514526757,1.89729869,29355.0,29354.0,0.338876]
[1609514526961,1.80703681,29355.0,29354.0,0.0002]
[1609514527156,1.80703681,29355.0,29353.0,0.5106]
[1609514527358,0.27,29354.0,29353.0,0.5106]
[1609514527563,0.27,29354.0,29353.0,0.849288]
[1609514527564,2.02952069,29354.0,29353.0,0.849288]
[1609514527756,1.87229869,29354.0,29353.0,0.849288]
[1609514528062,1.78203681,29354.0,29353.0,0.849288]
[1609514529065,1.26203681,29354.0,29353.0,0.849288]
[1609514530271,1.78203681,29354.0,29353.0,0.849288]
[1609514530770,1.26203681,29354.0,29353.0,0.849288]
[1609514532971,0.99203681,29354.0,29353.0,0.849288]
[1609514534078,0.99203681,29354.0,29353.0,1.11367429]
[1609514535313,0.99203681,29354.0,29353.0,4.06367429]
[1609514535719,0.99203681,29354.0,29353.0,4.06210592]
[1609514535917,0.99203681,29354.0,29353.0,4.31210592]
[1609514536348,0.99203681,29354.0,29353.0,4.96210592]
[1609514536645,0.99203681,29354.0,29353.0,5.29390894]
[1609514536845,0.99203681,29354.0,29353.0,4.31210592]
[1609514537348,0.99203681,29354.0,29353.0,5.96210592]
[1609514537547,0.99203681,29354.0,29353.0,4.31210592]
[1609514538448,0.99203681,29354.0,29353.0,5.21210592]
[1609514538645,0.99203681,29354.0,29353.0,4.31210592]
[1609514539286,0.99203681,29354.0,29353.0,4.30718147]
[1609514540300,0.49766265,29358.0,29353.0,4.30718147]
[1609514540496,0.49766265,29358.0,29357.0,5.538638]
[1609514540696,0.49766265,29358.0,29357.0,5.61862429]
[1609514541109,2.65e-06,29358.0,29357.0,5.61882429]
[1609514541410,0.00894294,29368.0,29366.0,0.338513]
[1609514541596,0.00894294,29368.0,29367.0,0.338497]
[1609514541797,0.00894294,29368.0,29367.0,5.488497]
[1609514542097,0.00894294,29368.0,29367.0,0.66848329]
[1609514542301,0.00394294,29368.0,29367.0,0.41848329]
[1609514542545,0.10128777,29372.0,29367.0,1.18060002]
[1609514542801,0.0002,29372.0,29368.0,0.33180302]
[1609514542998,1.0216,29372.0,29369.0,0.338468]
[1609514543493,0.15,29371.0,29369.0,0.338468]
[1609514543894,1.1714,29371.0,29369.0,0.338468]
[1609514544912,1.0214,29371.0,29369.0,0.338468]
[1609514545311,1.0214,29371.0,29369.0,0.41845429]
[1609514545513,2.01685,29371.0,29369.0,0.338468]
[1609514545720,0.664784,29370.0,29367.0,0.5103]
[1609514545915,0.3,29370.0,29367.0,0.5103]
[1609514546613,0.3,29370.0,29368.0,0.338483]
[1609514546816,1.3214,29370.0,29368.0,0.338483]
[1609514547122,0.135,29369.0,29368.0,0.338483]
[1609514547513,0.135,29369.0,29367.0,0.5103]
[1609514547712,0.135,29369.0,29368.0,0.338483]
[1609514548219,1.035,29369.0,29368.0,0.338483]
[1609514548416,1.035,29369.0,29367.0,0.5103]
[1609514548417,3.164784,29368.0,29367.0,0.5103]
[1609514548621,4.603664,29368.0,29367.0,0.5103]
[1609514548826,5.825064,29368.0,29362.0,0.05333649]
[1609514549127,2.81987994,29367.0,29362.0,0.05333649]
[1609514549417,0.2,29366.0,29362.0,0.05333649]
[1609514549625,0.09026188,29365.0,29363.0,0.338551]
[1609514549820,0.364784,29364.0,29362.0,0.05333649]
[1609514550042,0.364784,29364.0,29363.0,0.5105]
[1609514550245,1.0214,29364.0,29363.0,0.5105]
[1609514550448,1.11166188,29364.0,29363.0,0.5105]
[1609514550634,1.30666188,29364.0,29363.0,0.5105]
[1609514551289,1.2164,29364.0,29363.0,0.5105]
[1609514551784,1.2114,29364.0,29363.0,0.5105]
[1609514551987,1.66644588,29364.0,29363.0,0.5105]
[1609514554193,1.576184,29364.0,29363.0,0.5105]
[1609514554387,1.2114,29364.0,29363.0,0.5105]
[1609514554585,1.576184,29364.0,29363.0,0.5105]
[1609514554989,1.576184,29364.0,29363.0,0.43028753]
[1609514555191,1.66644588,29364.0,29363.0,0.43028753]
[1609514555809,1.86644588,29364.0,29363.0,0.43028753]
[1609514556104,2.18644588,29364.0,29363.0,0.43028753]
[1609514556309,1.576184,29364.0,29363.0,0.43028753]
[1609514557509,1.2114,29364.0,29363.0,0.43028753]
[1609514557715,1.576184,29364.0,29363.0,0.43028753]
[1609514559409,1.66644588,29364.0,29363.0,0.43028753]
[1609514559709,2.18644588,29364.0,29363.0,0.43028753]
[1609514560113,1.576184,29364.0,29363.0,0.43028753]
[1609514560308,1.576184,29364.0,29363.0,0.42828753]
[1609514560706,2.096184,29364.0,29363.0,0.42828753]
[1609514560909,1.576184,29364.0,29363.0,0.42828753]
[1609514561633,1.576184,29364.0,29363.0,0.52903642]
[1609514562033,1.576184,29364.0,29363.0,0.42828753]
[1609514562535,3.448856,29364.0,29363.0,0.42828753]
[1609514562734,3.448856,29364.0,29362.0,0.05333649]
[1609514562935,2.460234,29363.0,29362.0,0.05333649]
[1609514563239,2.57144588,29363.0,29362.0,0.15641834]
[1609514563735,3.56689588,29363.0,29362.0,0.15641834]
[1609514563933,2.57144588,29363.0,29362.0,0.15641834]
[1609514564136,2.77144588,29363.0,29362.0,0.05333649]
[1609514565236,2.57144588,29363.0,29362.0,0.15688833]
[1609514566039,2.05144588,29363.0,29362.0,0.15688833]
[1609514566620,2.72866788,29363.0,29362.0,0.15688833]
[1609514566818,3.72411788,29363.0,29362.0,0.15688833]
[1609514567124,8.243846,29363.0,29362.0,0.05333649]
[1609514567618,4.043846,29363.0,29362.0,0.05333649]
[1609514568123,5.393846,29363.0,29362.0,0.05333649]
[1609514569422,5.432446,29363.0,29362.0,0.05333649]
[1609514570022,3.87524651,29363.0,29362.0,0.05333649]
[1609514570422,3.78868651,29363.0,29362.0,0.05333649]
[1609514570623,3.63146451,29363.0,29362.0,0.05333649]
[1609514570837,3.78868651,29363.0,29362.0,0.05333649]
[1609514571439,3.66525651,29363.0,29362.0,0.05333649]
[1609514571640,3.59829639,29363.0,29362.0,0.05333649]
[1609514571843,3.07829639,29363.0,29362.0,0.05333649]
[1609514572042,3.39829639,29363.0,29362.0,0.04333649]
[1609514572340,3.35969639,29363.0,29362.0,0.04333649]
[1609514572546,3.39297639,29363.0,29362.0,0.04333649]
[1609514572740,3.35969639,29363.0,29362.0,0.04333649]
[1609514572945,3.54843839,29363.0,29362.0,0.04333649]
[1609514573150,4.83955839,29363.0,29362.0,0.04333649]
[1609514573444,5.10709651,29363.0,29362.0,0.04333649]
[1609514573840,5.10209651,29363.0,29362.0,0.04333649]
[1609514574141,4.10664651,29363.0,29362.0,0.04333649]
[1609514574344,5.10209651,29363.0,29362.0,0.04333649]
[1609514574542,4.10664651,29363.0,29362.0,0.04333649]
[1609514574842,5.95209651,29363.0,29362.0,0.04333649]
[1609514575142,4.10664651,29363.0,29362.0,0.04333649]
[1609514575741,5.10209651,29363.0,29362.0,0.04333649]
[1609514575939,4.10664651,29363.0,29362.0,0.04333649]
[1609514576142,5.10209651,29363.0,29362.0,0.04333649]
[1609514576863,4.20886733,29363.0,29362.0,0.04333649]
[1609514577064,3.91212733,29363.0,29362.0,0.04333649]
[1609514579272,4.90757733,29363.0,29362.0,0.04333649]
[1609514579768,3.91345651,29363.0,29362.0,0.04333649]
[1609514579965,4.90890651,29363.0,29362.0,0.04333649]
[1609514580166,3.91345651,29363.0,29362.0,0.04333649]
[1609514580566,4.11345651,29363.0,29362.0,0.04333649]
[1609514580965,4.11267905,29363.0,29362.0,0.04333649]
[1609514581462,4.07951093,29363.0,29362.0,0.04333649]
[1609514582560,4.11267905,29363.0,29362.0,0.04333649]
[1609514583166,3.97673839,29363.0,29362.0,0.04333649]
[1609514584003,3.74628839,29363.0,29362.0,0.04333649]
[1609514584700,5.19628839,29363.0,29362.0,0.04333649]
[1609514585101,4.99628839,29363.0,29362.0,0.04333649]
[1609514585503,3.54628839,29363.0,29362.0,0.04333649]
[1609514585703,4.99628839,29363.0,29362.0,0.04333649]
[1609514586103,5.24131794,29363.0,29362.0,0.04333649]
[1609514586305,3.65495839,29363.0,29362.0,0.04333649]
[1609514586618,2.89247451,29363.0,29362.0,0.04333649]
[1609514586811,2.85810451,29363.0,29362.0,0.04333649]
[1609514587211,2.74943451,29363.0,29362.0,0.04333649]
[1609514588813,3.31334451,29363.0,29362.0,0.04333649]
[1609514589009,3.26943451,29363.0,29362.0,0.04333649]
[1609514589212,3.30913785,29363.0,29362.0,0.04333649]
[1609514589409,3.26943451,29363.0,29362.0,0.04333649]
[1609514589946,3.66247839,29363.0,29362.0,0.04333649]
[1609514590249,3.97421839,29363.0,29362.0,0.04333649]
[1609514590447,4.00738651,29363.0,29362.0,0.04333649]
[1609514590647,6.00738651,29363.0,29362.0,0.04333649]
[1609514592247,6.26278651,29363.0,29362.0,0.04333649]
[1609514592544,4.26278651,29363.0,29362.0,0.04333649]
[1609514592741,5.86278651,29363.0,29362.0,0.04333649]
[1609514593577,6.85823651,29363.0,29362.0,6.49e-06]
[1609514593781,6.71245127,29363.0,29362.0,6.49e-06]
[1609514593982,6.91244838,29363.0,29362.0,6.49e-06]
[1609514594182,9.00400863,29363.0,29362.0,6.49e-06]
[1609514594382,9.73611325,29363.0,29362.0,6.49e-06]
[1609514594677,10.73611325,29363.0,29362.0,6.49e-06]
[1609514594878,11.6197184,29363.0,29362.0,6.49e-06]
[1609514595077,11.96323443,29363.0,29362.0,6.49e-06]
[1609514595390,11.61970475,29363.0,29362.0,6.49e-06]
[1609514595583,0.99545,29360.0,29343.0,0.6319]
[1609514595790,0.61026188,29347.0,29342.0,0.0002]
[1609514596095,0.32560824,29346.0,29341.0,0.0012]
[1609514596404,1.168622,29345.0,29341.0,0.0012]
[1609514596606,0.09026188,29344.0,29341.0,0.0012]
[1609514596804,0.275,29343.0,29341.0,0.0012]
[1609514597016,1.61700824,29343.0,29341.0,0.0012]
[1609514597604,2.064784,29342.0,29341.0,0.0012]
[1609514597800,2.824974,29342.0,29341.0,0.0012]
[1609514598005,3.841374,29342.0,29341.0,0.0012]
[1609514598801,2.141374,29342.0,29341.0,0.0012]
[1609514599036,1.576374,29342.0,29341.0,0.0012]
[1609514599436,1.21159,29342.0,29341.0,0.340054]
[1609514599644,1.0164,29342.0,29341.0,0.340054]
[1609514600043,1.0164,29342.0,29341.0,0.42004029]
[1609514600546,1.0164,29342.0,29341.0,5.57004029]
[1609514600945,0.3356,29342.0,29341.0,5.57004029]
[1609514602039,0.3306,29342.0,29341.0,5.57004029]
[1609514602344,0.3306,29342.0,29341.0,5.82004029]
[1609514602938,0.3306,29342.0,29341.0,6.04804029]
[1609514603136,0.3306,29342.0,29341.0,6.14518029]
[1609514603337,0.3306,29342.0,29341.0,6.18420029]
[1609514604562,0.3306,29342.0,29341.0,1.03420029]
[1609514604763,0.3306,29342.0,29341.0,0.340054]
[1609514604969,0.57265,29342.0,29341.0,0.340054]
[1609514605572,0.66291188,29342.0,29341.0,0.340054]
[1609514605770,0.89791188,29342.0,29341.0,0.340054]
[1609514605966,0.89791188,29342.0,29341.0,0.0012]
[1609514606368,0.80765,29342.0,29341.0,0.340055]
[1609514608066,0.80765,29342.0,29341.0,0.335055]
[1609514608677,0.3306,29342.0,29341.0,0.335055]
[1609514609574,0.3306,29342.0,29341.0,2.185055]
[1609514610193,0.3306,29342.0,29341.0,2.866055]
[1609514611199,0.3306,29342.0,29341.0,1.016055]
[1609514611447,0.3306,29342.0,29341.0,2.266055]
[1609514611939,0.3306,29342.0,29341.0,2.266255]
[1609514612349,0.3306,29342.0,29341.0,1.016255]
[1609514612644,0.3306,29342.0,29341.0,1.916255]
[1609514613652,0.3306,29342.0,29341.0,1.016255]
[1609514618460,0.3306,29342.0,29341.0,1.966255]
[1609514619057,0.3306,29342.0,29341.0,2.131255]
[1609514620161,0.3306,29342.0,29341.0,1.966255]
[1609514620764,0.3306,29342.0,29341.0,1.016255]
[1609514620961,4.5306,29342.0,29341.0,1.016055]
[1609514621171,7.85331788,29342.0,29341.0,0.0002]
[1609514621371,7.85331788,29342.0,29340.0,0.0062]
[1609514621595,7.71441504,29341.0,29340.0,0.0062]
[1609514621790,9.04501504,29341.0,29340.0,0.0062]
[1609514622484,9.24501504,29341.0,29340.0,0.0062]
[1609514624988,4.04501504,29341.0,29340.0,0.0062]
[1609514625286,3.84501504,29341.0,29340.0,0.0062]
[1609514626567,2.84956504,29341.0,29340.0,0.0062]
[1609514629318,3.89956504,29341.0,29340.0,0.0062]
[1609514629919,2.84956504,29341.0,29340.0,0.0062]
[1609514630621,3.84501504,29341.0,29340.0,0.0062]
[1609514631520,2.84956504,29341.0,29340.0,0.0062]
[1609514631720,3.84501504,29341.0,29340.0,0.0062]
[1609514631920,3.84501504,29341.0,29337.0,0.0004]
[1609514632138,3.84501504,29341.0,29330.0,0.50779792]
[1609514632139,0.52,29338.0,29330.0,0.50779792]
[1609514632328,0.52,29334.0,29330.0,0.50779792]
[1609514632627,0.8506,29334.0,29331.0,0.334983]
[1609514633048,0.3306,29334.0,29331.0,0.334983]
[1609514633248,0.3306,29333.0,29331.0,0.334983]
[1609514635848,0.3306,29333.0,29331.0,0.335183]
[1609514636049,0.8506,29333.0,29331.0,0.335183]
[1609514636250,0.155,29332.0,29331.0,0.335183]
[1609514636447,1.0056,29332.0,29331.0,0.335183]
[1609514637753,1.0056,29332.0,29331.0,0.0002]
[1609514638060,0.364818,29331.0,29330.0,0.10111339]
[1609514638251,0.72831,29331.0,29330.0,0.335199]
[1609514638497,1.246432,29331.0,29330.0,0.335199]
[1609514638701,0.726432,29331.0,29330.0,0.335199]
[1609514639302,1.383594,29331.0,29330.0,0.4365113]
[1609514639602,0.831372,29331.0,29330.0,0.335199]
[1609514640098,1.433594,29331.0,29330.0,0.335199]
[1609514640300,1.281372,29331.0,29330.0,0.0002]
[1609514640504,1.64619,29331.0,29329.0,0.0016]
[1609514640700,1.488068,29331.0,29330.0,0.1021408]
[1609514640903,0.67325,29331.0,29330.0,0.0002]
[1609514641108,0.890182,29331.0,29330.0,0.3352]
[1609514641303,0.81831,29331.0,29330.0,0.3352]
[1609514641904,0.81831,29331.0,29330.0,0.43874209]
[1609514642104,1.33831,29331.0,29330.0,0.10354209]
[1609514642305,1.183128,29331.0,29330.0,0.10354209]
[1609514642809,0.81831,29331.0,29330.0,0.335]
[1609514643211,0.56831,29331.0,29330.0,0.335]
[1609514643409,0.3306,29331.0,29330.0,0.335]
[1609514645547,0.5606,29331.0,29330.0,0.335]
[1609514645851,0.5106,29331.0,29330.0,3.385]
[1609514646252,0.2806,29331.0,29330.0,3.46498629]
[1609514646748,0.2806,29331.0,29330.0,0.41498629]
[1609514647347,0.4806,29331.0,29330.0,0.41498629]
[1609514648652,0.2806,29331.0,29330.0,0.41498629]
[1609514648954,0.2806,29331.0,29330.0,1.09618629]
[1609514649251,0.2806,29331.0,29330.0,3.39618629]
[1609514652100,0.2806,29331.0,29330.0,3.64618629]
[1609514653200,0.2806,29331.0,29330.0,4.49618629]
[1609514653613,0.2806,29331.0,29330.0,3.64618629]
[1609514653911,0.2806,29331.0,29330.0,4.79618629]
[1609514654313,0.2806,29331.0,29330.0,3.64618629]
[1609514654914,0.2806,29331.0,29330.0,4.94618629]
[1609514655921,0.2806,29331.0,29330.0,6.54618629]
[1609514656326,9.02e-06,29332.0,29330.0,6.54618629]
[1609514656561,9.02e-06,29332.0,29331.0,0.585188]
[1609514656862,0.993,29343.0,29331.0,1.01236311]
[1609514657064,1.2823,29347.0,29335.0,0.334929]
[1609514657257,1.2823,29347.0,29339.0,0.334874]
[1609514657458,1.0,29347.0,29343.0,0.334824]
[1609514657661,1.0,29347.0,29346.0,0.334784]
[1609514657853,1.2753,29351.0,29346.0,0.41477029]
[1609514658659,1.2753,29351.0,29346.0,0.59522029]
[1609514658854,1.2753,29351.0,29346.0,0.69633423]
[1609514659082,1.2753,29351.0,29347.0,0.334766]
[1609514659284,1.2753,29351.0,29350.0,0.334731]
[1609514659487,1.0,29351.0,29350.0,0.334727]
[1609514659689,0.245,29353.0,29350.0,0.334727]
[1609514659889,0.195,29352.0,29351.0,0.334713]
[1609514660086,1.217,29352.0,29351.0,0.334713]
[1609514660282,1.022,29352.0,29351.0,0.334713]
[1609514660787,1.017,29352.0,29351.0,0.334713]
[1609514661981,1.017,29352.0,29351.0,0.4373531]
[1609514662183,1.272,29352.0,29351.0,0.4373531]
[1609514662783,1.272,29352.0,29351.0,0.334713]
[1609514662990,2.26745,29352.0,29351.0,0.334713]
[1609514663191,2.419672,29352.0,29351.0,0.334713]
[1609514663889,2.419672,29352.0,29351.0,0.4376904]
[1609514664089,1.272,29352.0,29351.0,0.4376904]
[1609514664595,2.26745,29352.0,29351.0,0.4376904]
[1609514664807,1.272,29352.0,29351.0,0.334713]
[1609514665315,2.414672,29352.0,29349.0,0.0002]
[1609514665511,0.52,29350.0,29348.0,0.0002]
[1609514665818,0.52,29350.0,29348.0,0.10364791]
[1609514665819,5.12749,29349.0,29348.0,0.10364791]
[1609514666016,6.97765812,29349.0,29348.0,0.10344791]
[1609514666220,6.97765812,29349.0,29342.0,0.0002]
[1609514666221,0.52,29345.0,29342.0,0.0002]
[1609514666518,1.10726188,29344.0,29343.0,0.334812]
[1609514666712,1.37226188,29344.0,29343.0,0.334812]
[1609514667512,1.37226188,29344.0,29343.0,0.335012]
[1609514668111,2.36771188,29344.0,29343.0,0.334812]
[1609514668312,1.37226188,29344.0,29342.0,0.0002]
[1609514668511,1.10726188,29344.0,29343.0,0.334823]
[1609514669808,1.10726188,29344.0,29343.0,0.335023]
[1609514670008,1.29726188,29344.0,29343.0,0.335023]
[1609514670433,1.29726188,29344.0,29343.0,0.334823]
[1609514671977,2.81271188,29344.0,29343.0,0.334823]
[1609514672186,2.81271188,29344.0,29342.0,0.0002]
[1609514672378,1.880268,29343.0,29341.0,0.6811]
[1609514672577,1.51545,29342.0,29341.0,0.6811]
[1609514672777,0.99545,29342.0,29341.0,1.015949]
[1609514672982,2.45745,29342.0,29341.0,1.015749]
[1609514673784,1.462,29342.0,29341.0,1.01575]
[1609514674384,1.017,29342.0,29341.0,1.01575]
[1609514677298,2.499672,29342.0,29341.0,1.01575]
[1609514677605,5.07507988,29341.0,29335.0,0.8512]
[1609514677908,5.07507988,29341.0,29337.0,0.0002]
[1609514677909,3.417222,29338.0,29337.0,0.0002]
[1609514678106,2.2,29337.0,29330.0,0.669]
[1609514678309,0.52,29336.0,29331.0,0.334974]
[1609514678495,1.0,29336.0,29331.0,0.334974]
[1609514678708,2.537,29336.0,29334.0,0.511]
[1609514678896,1.017,29336.0,29335.0,0.334933]
[1609514679902,1.164222,29336.0,29335.0,0.334933]
[1609514680092,1.399222,29336.0,29335.0,0.334933]
[1609514680598,1.252,29336.0,29335.0,0.334933]
[1609514681613,1.252,29336.0,29335.0,0.335133]
[1609514682526,1.017,29336.0,29335.0,0.335133]
[1609514683623,1.017,29336.0,29335.0,0.334933]
[1609514684525,1.167,29336.0,29335.0,0.334933]
[1609514685125,1.167,29336.0,29335.0,1.016133]
[1609514687433,1.167,29336.0,29335.0,1.015433]
[1609514687434,1.017,29336.0,29335.0,1.015433]
[1609514687634,1.017,29336.0,29335.0,2.065433]
[1609514688024,1.017,29336.0,29335.0,1.015433]
[1609514692758,1.242,29336.0,29335.0,1.015433]
[1609514693653,1.33226188,29336.0,29335.0,1.015433]
[1609514694266,1.242,29336.0,29335.0,1.015433]
[1609514698190,1.242,29336.0,29335.0,1.005433]
[1609514699685,1.017,29336.0,29335.0,1.005433]
[1609514702854,1.012,29336.0,29335.0,1.005433]
[1609514703059,1.242,29336.0,29335.0,1.005433]
[1609514703858,1.242,29336.0,29335.0,1.00343349]
[1609514704699,1.242,29336.0,29335.0,0.99762476]
[1609514704897,1.242,29336.0,29335.0,0.99692476]
[1609514705199,1.242,29336.0,29335.0,0.99712476]
[1609514706605,0.3312,29336.0,29335.0,6.47245105]
[1609514706798,0.3312,29336.0,29335.0,6.47225105]
[1609514707005,0.52957075,29338.0,29336.0,5.2]
[1609514707208,0.52957075,29338.0,29337.0,6.09749902]
[1609514707408,0.52957075,29338.0,29337.0,5.765696]
[1609514708311,0.52957075,29338.0,29337.0,5.84568229]
[1609514709103,0.51957075,29338.0,29337.0,6.69688229]
[1609514709300,0.51957075,29338.0,29337.0,6.69708229]
[1609514709820,0.51957075,29338.0,29337.0,6.69309725]
[1609514711426,0.41717573,29338.0,29337.0,6.69309725]
[1609514712424,0.39127573,29338.0,29337.0,6.69309725]
[1609514721547,0.39127573,29338.0,29337.0,6.74587525]
[1609514722144,0.39127573,29338.0,29337.0,6.84888168]
[1609514722442,0.39127573,29338.0,29337.0,6.74587525]
[1609514723144,0.39127573,29338.0,29337.0,7.07365525]
[1609514727791,0.39127573,29338.0,29337.0,7.15211525]
[1609514729234,0.39127573,29338.0,29337.0,8.65211525]
[1609514729440,0.02798344,29349.0,29337.0,8.65211525]
[1609514729640,0.02798344,29349.0,29341.0,0.315641]
[1609514729841,0.02798344,29349.0,29338.0,0.57539586]
[1609514729842,0.02798344,29349.0,29345.0,0.315593]
[1609514730043,0.02798344,29349.0,29348.0,4.615556]
[1609514731236,0.02798344,29349.0,29348.0,5.62634229]
[1609514731957,0.02798344,29349.0,29348.0,1.32634229]
[1609514732168,1.02343344,29349.0,29348.0,1.246356]
[1609514732372,2.04563344,29349.0,29348.0,0.996356]
[1609514733160,1.05018344,29349.0,29348.0,0.996356]
[1609514733361,1.25018344,29349.0,29348.0,0.996356]
[1609514734158,1.25018344,29349.0,29348.0,0.99552315]
[1609514736600,1.05018344,29349.0,29348.0,0.99552315]
[1609514740518,1.20518344,29349.0,29348.0,0.99552315]
[1609514740718,1.05018344,29349.0,29348.0,0.99552315]
[1609514746347,1.04518344,29349.0,29348.0,0.99552315]
[1609514746555,2.46311732,29349.0,29348.0,0.99552315]
[1609514746817,2.82791832,29349.0,29348.0,0.6808]
[1609514747015,1.14953816,29348.0,29346.0,0.6808]
[1609514747221,3.41765,29347.0,29346.0,0.6808]
[1609514747415,4.41265,29347.0,29346.0,0.6808]
[1609514747609,4.21265,29347.0,29346.0,0.6808]
[1609514747817,4.61265,29347.0,29346.0,0.6808]
[1609514748012,4.65017,29347.0,29346.0,0.6808]
[1609514748609,3.17566,29347.0,29346.0,0.6808]
[1609514749445,3.17546,29347.0,29346.0,0.6808]
[1609514749946,3.25017,29347.0,29346.0,0.6808]
[1609514750246,3.05017,29347.0,29346.0,0.6808]
[1609514750644,3.01347339,29347.0,29346.0,0.6808]
[1609514750845,2.97595339,29347.0,29346.0,0.6808]
[1609514751043,3.14075439,29347.0,29346.0,0.6808]
[1609514751244,3.34075439,29347.0,29346.0,0.6808]
[1609514751753,3.14075439,29347.0,29346.0,0.6808]
[1609514752047,2.97595339,29347.0,29346.0,0.6808]
[1609514752246,2.77595339,29347.0,29346.0,0.6781]
[1609514752447,1.8172,29347.0,29346.0,0.6781]
[1609514752648,1.0222,29347.0,29346.0,0.6781]
[1609514752945,1.98095339,29347.0,29346.0,0.6781]
[1609514753445,2.18095339,29347.0,29346.0,0.6781]
[1609514753647,2.32095339,29347.0,29346.0,0.6781]
[1609514753847,1.5622,29347.0,29346.0,0.58784825]
[1609514754050,1.5622,29347.0,29346.0,0.57783548]